Cogmind - Beta 16 @@@ ROGUE MODE // 2025.10.26 @ 13:43:29 Player: Rocko1345 Result: Self-destructed Performance ------------- Evolutions (4) 2000 Regions Visited (4) 800 Robots Destroyed (8) 40 Value Destroyed (345) 345 Prototype IDs (6) 120 Alien Tech Used (0) 0 Bonus (300) 300 TOTAL SCORE: 3605 Bonus ------- Registered with UFD 300 Cogmind --------- Core Integrity 761/850 Matter 220/300 Energy 300/300 System Corruption 0% Temperature Cool (68) Movement Rolling (125) Ox2 Location -6/Factory Parts ------- > --- POWER (2) -------- Ion Engine Light Angular Momentum Engine > --- PROPULSION (3) --- Armored Wheel Armored Huge Wheel > --- UTILITY (6) ------ Huge Storage Unit Improved Trap Scanner Advanced Sensor Array Advanced Signal Interpreter Hacking Suite > --- WEAPON (4) ------- Heavy Assault Rifle Heavy Assault Rifle Heavy Assault Rifle Heavy Machine Gun > --- INVENTORY (25) --- Micro Nuclear Core Improved Medium Treads Improved Medium Treads Improved Medium Treads Armored Wheel Improved Cryofiber Web Small Storage Unit Advanced Sensor Array Advanced Terrain Scanner Target Analyzer Hardened Light Armor Plating Heavy Laser Heavy Laser Battle Rifle Power Sword Power Sword Peak State ------------ > --- POWER ------------ Ion Engine Light Angular Momentum Engine > --- PROPULSION ------- Armored Wheel Armored Huge Wheel > --- UTILITY ---------- Huge Storage Unit Improved Trap Scanner Advanced Sensor Array Advanced Signal Interpreter Hardened Light Armor Plating Hacking Suite > --- WEAPON ----------- Heavy Assault Rifle Heavy Assault Rifle Heavy Assault Rifle Heavy Machine Gun > --- INVENTORY -------- Micro Nuclear Core Improved Medium Treads Improved Medium Treads Improved Medium Treads Armored Wheel Improved Cryofiber Web Small Storage Unit Advanced Sensor Array Advanced Terrain Scanner Target Analyzer Hardened Light Armor Plating Heavy Laser Heavy Laser Battle Rifle Power Sword Power Sword [Rating: 54] Favorites ----------- Power Ion Engine Engine Ion Engine Propulsion Armored Wheel Leg Aluminum Leg Wheel Armored Wheel Utility Small Storage Unit Device Advanced Sensor Array Storage Small Storage Unit Processor Advanced Signal Interpreter Hackware Hacking Suite Protection Hardened Light Armor Plating Weapon Heavy Assault Rifle Energy Gun EM Pulse Gun Ballistic Gun Heavy Assault Rifle Build | -11 -10 -10 -9 -6 ------- Run | Yrd Mat Sub Scr Fac Slots Evolved 8 | . . . . 8 Power 1 | . . . . 1 Propulsion 1 | . . . . 1 Utility 4 | . . . . 4 Weapon 2 | . . . . 2 Parts Attached 24 | 6 4 1 1 12 Power 2 | 1 . . . 1 Engine 2 | 1 . . . 1 Core . | . . . . . Reactor . | . . . . . Propulsion 6 | 2 2 . . 2 Treads . | . . . . . Leg 2 | 2 . . . . Wheel 4 | . 2 . . 2 Hover . | . . . . . Flight . | . . . . . Utility 8 | 1 . 1 . 6 Device 3 | . . . . 3 Storage 2 | 1 . . . 1 Processor 1 | . . . . 1 Hackware 1 | . . . . 1 Protection 1 | . . 1 . . Artifact . | . . . . . Weapon 8 | 2 2 . 1 3 Energy Gun 1 | 1 . . . . Energy Cannon . | . . . . . Ballistic Gun 7 | 1 2 . 1 3 Ballistic Cannon . | . . . . . Launcher . | . . . . . Special Weapon . | . . . . . Impact Weapon . | . . . . . Slashing Weapon . | . . . . . Piercing Weapon . | . . . . . Special Melee Weapon . | . . . . . Unidentified Prototypes . | . . . . . Parts Lost 1 | . . . . 1 Power . | . . . . . Propulsion . | . . . . . Utility 1 | . . . . 1 Weapon . | . . . . . Highest Loss Streak 1 | . . . . 1 To Critical Strikes . | . . . . . Average Backups 6 | . 3 7 6 7 Power . | . . . . . Propulsion 1 | . . 2 2 1 Utility 2 | . 1 3 2 3 Weapon 1 | . . 2 2 1 Tool/Special . | . . . . . Unused Backups 14 | . . 3 . 11 Power 1 | . . . . 1 Propulsion 4 | . . . . 4 Utility 7 | . . 3 . 4 Weapon 2 | . . . . 2 Tool/Special . | . . . . . Average Slot Usage (%) 94 | . 85 92 100 89 Engine 13 | . 14 14 14 10 Leg 1 | . 16 . . . Wheel 23 | . 11 28 28 16 Device 3 | . . . . 12 Storage 11 | . 14 14 14 6 Processor 1 | . . . . 5 Hackware 1 | . . . . 5 Protection 9 | . . 7 14 6 Ballistic Gun 25 | . 19 28 28 23 Peak Build Rating 54 | 6 11 13 14 54 Average Rating 19 | 3 7 12 13 42 On Entrance 8 | . 6 11 13 14 Avg Prop Armor Cover (%) 8 | . 8 . . . Naked Turns . | . . . . . Heaviest Build 117 | 14 16 21 21 117 Greatest Support 40 | 20 24 24 24 40 Greatest Overweight (x) 2 | . 1 . . 2 Average Overweight (x) . | . . . . 1 Largest Inventory Capacity 25 | 8 8 8 8 25 Average Capacity 10 | 6 8 8 8 15 Most Carried 16 | . 8 8 8 16 Average Carried 7 | . 3 7 7 7 Final Capacity 25 | 8 8 8 8 25 Final Carried 16 | . 8 8 8 16 Class Distribution -------------------- 76% | Mutant 23% | Skirmisher Dominant Class ---------------- Mutant | -10/Materials Mutant | -10/Subcaves Mutant | -9/Scraptown Skirmisher | -6/Factory Resources | -11 -10 -10 -9 -6 ----------- Run | Yrd Mat Sub Scr Fac Matter Collected 636 | 245 . 95 64 232 Remotely . | . . . . . Salvage Created 514 | . . 155 . 359 Parts 19 | . . 8 . 11 Haulers Intercepted . | . . . . . Recyclers Shooed . | . . . . . Parts Field Recycled . | . . . . . Retrieved Matter . | . . . . . Parts Self-Destructed 3 | . . 3 . . Prevented . | . . . . . Parts Restored . | . . . . . Kills | -11 -10 -10 -9 -6 ------- Run | Yrd Mat Sub Scr Fac Combat Hostiles Destroyed 7 | . . 3 . 4 Guns 7 | . . 3 . 4 Classes Destroyed 5 | . . 2 . 3 Recycler 1 | . . . . 1 Grunt 3 | . . . . 3 Sentry 1 | . . 1 . . Programmer 1 | . . . . 1 Subdweller 2 | . . 2 . . Best Kill Streak 2 | . . 2 . 2 Combat Bots Only 2 | . . 2 . 2 Max Kills in Single Turn 1 | . . 1 . 1 Gunslinging . | . . . . . Exploded . | . . . . . Melee . | . . . . . Uniques/NPCs Destroyed . | . . . . . Combat | -11 -10 -10 -9 -6 -------- Run | Yrd Mat Sub Scr Fac Hostile Shots Fired 81 | . . 20 . 61 Missed 25 | . . 6 . 19 Hits 56 | . . 14 . 42 Projectile 56 | . . 14 . 42 Critical Strikes 3 | . . 2 . 1 Damage Taken 1065 | . . 352 . 713 Core 190 | . . 101 . 89 Absorbed by Shields . | . . . . . Core Remaining (%) 79 | 100 . . 59 . Volleys Fired 31 | . 3 12 . 16 Largest 4 | . 2 2 . 4 Hottest 99 | . 60 46 . 99 Shots Fired 94 | . 6 24 . 64 Gun 94 | . 6 24 . 64 Cannon . | . . . . . Launcher . | . . . . . Special . | . . . . . Kinetic 92 | . 4 24 . 64 Thermal . | . . . . . Explosive . | . . . . . Electromagnetic 2 | . 2 . . . Robot Hit Streak 15 | . 1 7 . 15 Robot Miss Streak 3 | . 3 2 . 3 Penetration Max . | . . . . . Secondary Targets . | . . . . . Shots Hit Robots 62 | . 2 17 . 43 Core Hits 21 | . . 5 . 16 Critical Kills . | . . . . . Critical Parts Destroyed . | . . . . . Critical Strikes . | . . . . . Melee Attacks . | . . . . . Impact . | . . . . . Slashing . | . . . . . Piercing . | . . . . . Sneak Attacks . | . . . . . Combat Hostiles . | . . . . . Follow-up Attacks . | . . . . . Damage Inflicted 988 | . 32 252 . 704 Guns 988 | . 32 252 . 704 Cannons . | . . . . . Explosions . | . . . . . Melee . | . . . . . Ramming . | . . . . . Kinetic 988 | . 32 252 . 704 Thermal . | . . . . . Explosive . | . . . . . Electromagnetic . | . . . . . Impact . | . . . . . Slashing . | . . . . . Piercing . | . . . . . Highest Corruption . | . . . . . Average Corruption . | . . . . . Corruption Purged . | . . . . . Corruption Blocked . | . . . . . Overload Shots . | . . . . . Overflow Damage . | . . . . . Projectiles . | . . . . . Explosions . | . . . . . Melee . | . . . . . Knockbacks . | . . . . . Impact . | . . . . . Kinetic . | . . . . . Secondary . | . . . . . Self-Inflicted Damage . | . . . . . Shots . | . . . . . Rammed . | . . . . . Targets Rammed . | . . . . . Kicked . | . . . . . Crushed . | . . . . . Highest Temperature 106 | . . . . 106 Average Temperature 36 | . . . . 36 Received Heat Transfer 168 | . . 36 . 132 Siege Activations . | . . . . . Martial Activations . | . . . . . Shielding Activations . | . . . . . Robots Disrupted . | . . . . . Combat Hostiles . | . . . . . Robots Corrupted . | . . . . . Combat Hostiles . | . . . . . Parts Fried . | . . . . . Impact Corruptions . | . . . . . Robots Melted . | . . . . . Combat Hostiles . | . . . . . Parts Melted . | . . . . . Heat Transferred . | . . . . . Parts Sabotaged . | . . . . . Parts Stolen . | . . . . . Parts Stripped . | . . . . . Power Chain Reactions . | . . . . . Alert | -11 -10 -10 -9 -6 ------- Run | Yrd Mat Sub Scr Fac Maximum Alert Level . | . . . . . Low Security (%) 100 | 100 100 . . 100 Level 1 . | . . . . . Level 2 . | . . . . . Level 3 . | . . . . . Level 4 . | . . . . . Level 5 . | . . . . . High Security . | . . . . . Max Security . | . . . . . Peak Influence 80 | . 6 . . 80 Initial . | . . . . . Average 14 | . . . . 21 Influence Increases 297 | . 11 20 . 266 Destroy 0b10 Robot/C 100 | . . 20 . 80 Destroy 0b10 Robot/NC 5 | . . . . 5 Destroy Leader 20 | . . . . 20 Successful Hack 36 | . 10 . . 26 Destroy Structure 1 | . 1 . . . Lose Combat Pursuer 135 | . . . . 135 Influence Decreases 288 | . 11 20 . 257 Time Decay 278 | . 11 20 . 247 Lost Part 10 | . . . . 10 Squads Dispatched 5 | . 2 . . 3 Investigation . | . . . . . Extermination 1 | . . . . 1 Reinforcement 4 | . 2 . . 2 Assault . | . . . . . Garrison . | . . . . . Intercept . | . . . . . Searches Triggered . | . . . . . Construction Impeded . | . . . . . Haulers Reinforced . | . . . . . Active Scanning Responses . | . . . . . Cargo Convoy Interrupts . | . . . . . Stealth | -11 -10 -10 -9 -6 --------- Run | Yrd Mat Sub Scr Fac Distress Signals 1 | . . . . 1 Communications Jammed . | . . . . . Distress Signals . | . . . . . Times Spotted 23 | . 3 2 . 18 Peak Tracking Total 10 | . 1 2 . 10 Tactical Retreats 5 | . . . . 5 Traps | -11 -10 -10 -9 -6 ------- Run | Yrd Mat Sub Scr Fac Traps Triggered 1 | . . 1 . . Indirectly . | . . . . . Trap Hack Attempts . | . . . . . Triggered . | . . . . . Disarmed . | . . . . . Reprogrammed . | . . . . . Reused . | . . . . . Traps Extracted . | . . . . . Installed . | . . . . . Triggered . | . . . . . Machines | -11 -10 -10 -9 -6 ---------- Run | Yrd Mat Sub Scr Fac Machines Disabled . | . . . . . Max in Single Turn . | . . . . . Machines Repaired . | . . . . . Machines Dismantled . | . . . . . Machines Sabotaged . | . . . . . Overloaded Fab Kills . | . . . . . Hacking | -11 -10 -10 -9 -6 --------- Run | Yrd Mat Sub Scr Fac Machines Accessed 14 | . 2 1 8 3 Terminals 4 | . 2 . . 2 Fabricators 1 | . . . . 1 Repair Stations . | . . . . . Recycling Units . | . . . . . Scanalyzers . | . . . . . Garrison Access . | . . . . . Total Hacks 52 | . 6 4 34 8 Successful 47 | . 3 4 34 6 Failed 5 | . 3 . . 2 Catastrophic . | . . . . . Database Lockouts . | . . . . . Manual 8 | . 4 . . 4 Terminals 12 | . 6 . . 6 Fabricators 2 | . . . . 2 Repair Stations . | . . . . . Recycling Units . | . . . . . Scanalyzers . | . . . . . Garrison Access . | . . . . . Terminal Hacks 40 | . 1 4 34 1 Record 37 | . . 4 33 . Locate Traps 1 | . 1 . . . Zone Layout 1 | . . . . 1 Proto ID Catalog 1 | . . . 1 . Fabricator Hacks 1 | . . . . 1 Network Status 1 | . . . . 1 Repair Station Hacks . | . . . . . Recycling Unit Hacks . | . . . . . Scanalyzer . | . . . . . Garrison Access Hacks . | . . . . . Unauthorized Hacks 6 | . 2 . . 4 Terminals 5 | . 2 . . 3 Assimilate 1 | . . . . 1 Botnet 3 | . 1 . . 2 Operators 1 | . 1 . . . Fabricators 1 | . . . . 1 Fabnet 1 | . . . . 1 Repair Stations . | . . . . . Recycling Units . | . . . . . Scanalyzers . | . . . . . Garrison Access . | . . . . . Data Cores Recovered . | . . . . . Used . | . . . . . Hacking Detections 5 | . 2 . . 3 Full Trace Events . | . . . . . Feedback Events . | . . . . . Feedback Blocked . | . . . . . Robot Schematics Acquired . | . . . . . Robots Built . | . . . . . Authchips . | . . . . . Time . | . . . . . Total Robot Build Rating . | . . . . . Part Schematics Acquired . | . . . . . Parts Built . | . . . . . Authchips . | . . . . . Time . | . . . . . Total Part Build Rating . | . . . . . Part Studies Acquired . | . . . . . Parts Repaired . | . . . . . Time . | . . . . . Parts Recycled . | . . . . . Recycled Matter . | . . . . . Retrieved Matter . | . . . . . Retrieved Components . | . . . . . Parts Scanalyzed . | . . . . . Part Schematics Acquired . | . . . . . Parts Damaged . | . . . . . Bothacking | -11 -10 -10 -9 -6 ------------ Run | Yrd Mat Sub Scr Fac Used RIF Installer . | . . . . . Robots Hacked . | . . . . . Non-combat . | . . . . . Combat . | . . . . . Robot Hacks Applied . | . . . . . Relay Couplers Released . | . . . . . Fabnet Peak Effective % . | . . . . . Robots Rewired . | . . . . . Allies Hacked . | . . . . . Hacks Repelled . | . . . . . Allies | -11 -10 -10 -9 -6 -------- Run | Yrd Mat Sub Scr Fac Total Allies . | . . . . . Largest Group . | . . . . . Highest-Rated Group . | . . . . . Highest-Rated Ally . | . . . . . Total Orders . | . . . . . Ally Attacks . | . . . . . Total Damage . | . . . . . Kills . | . . . . . Allies Corrupted . | . . . . . Allies Melted . | . . . . . Intel | -11 -10 -10 -9 -6 ------- Run | Yrd Mat Sub Scr Fac Active Infowar (turns) 771 | . . . . 771 Sensors 771 | . . . . 771 Traps 700 | . . . . 700 Robot Analysis Total . | . . . . . Derelict Logs Recovered 2 | . . 1 1 . Drone Launches . | . . . . . Drone Recoveries . | . . . . . Exploration | -11 -10 -10 -9 -6 ------------- Run | Yrd Mat Sub Scr Fac Turns Passed 3054 | 55 307 332 1581 779 Spaces Moved 2768 | 42 151 303 1743 529 Core 6 | 6 . . . . Treads . | . . . . . Legs 121 | 36 85 . . . Wheels 2641 | . 66 303 1743 529 Hover . | . . . . . Flight . | . . . . . Fastest Speed 50 | 50 90 90 90 90 Average Speed 94 | 110 106 90 90 107 Slowest Speed 125 | 120 120 90 90 125 Overloaded Moves . | . . . . . Propulsion Burnouts . | . . . . . Robots Hopped . | . . . . . Potential Cave-ins . | . . . . . Cave-ins Triggered . | . . . . . Exploration Rate (%) 30 | 3 28 20 89 14 Regions Visited 4 Branch Regions 2 Pre-discovered Areas 2 | . . 1 1 . Known Exits Taken . | . . . . . Unknown Exits Taken 4 | 1 1 1 1 . Scrap Searched 4 | . . . 4 . Spaces Dug . | . . . . . Terrain Destroyed . | . . . . . Melee . | . . . . . Projectile . | . . . . . AOE . | . . . . . Terrain Rammed . | . . . . . Walls Destroyed . | . . . . . Machines Disabled . | . . . . . Actions | -11 -10 -10 -9 -6 --------- Run | Yrd Mat Sub Scr Fac Total 3131 | 48 289 339 1756 699 Wait 275 | 1 120 18 8 128 Move 2764 | 41 150 302 1742 529 Hop . | . . . . . Pick Up 27 | . 10 3 3 11 Fast Attach 9 | 6 . . . 3 Attach 7 | . . 1 . 6 Detach 1 | . . . . 1 Swap 8 | . 4 . 1 3 Drop 9 | . 2 3 2 2 Fire 31 | . 3 12 . 16 Melee . | . . . . . Ram . | . . . . . Kick . | . . . . . Crush . | . . . . . Escape Stasis . | . . . . . Rewire . | . . . . . Trap . | . . . . . Miscellaneous . | . . . . . Route ------- -11/Scrapyard -10/Materials -10/Subcaves (discovered 2 exits: [*Mat] / *Scr) -9/Scraptown -6/Factory History --------- Turn | Location | Event 4 | -11/Scrapyard | Discovered new exit (range 16) 56 | -11/Scrapyard | Entered Materials 311 | -10/Materials | Build established: Mutant 344 | -10/Materials | Discovered new exit (range 6) 363 | -10/Materials | Entered Subcaves 364 | -10/Subcaves | Approached by a straggling Scientist 373 | -10/Subcaves | Learned Materials terminal intel 388 | -10/Subcaves | A swath of the cavern ceiling suddenly collapsed 462 | -10/Subcaves | Visited Clippyterm 464 | -10/Subcaves | Learned location of Extension (-4) 464 | -10/Subcaves | Learned Factory stockpile data 483 | -10/Subcaves | Discovered new exit (range 10) 489 | -10/Subcaves | A swath of the cavern ceiling suddenly collapsed 695 | -10/Subcaves | Scientist uncovered a shortcut to Scraptown 695 | -10/Subcaves | Entered Scraptown 838 | -9/Scraptown | Visited Fellowship of the Rings 852 | -9/Scraptown | Visited Cyclists 876 | -9/Scraptown | Visited Shadow of the Wyrm 920 | -9/Scraptown | Scanned Subdweller tech in exchange for log data 923 | -9/Scraptown | Learned location of Warlord (-4) 935 | -9/Scraptown | Discovered new exit (range 11) 1127 | -9/Scraptown | Visited Spacefarers 1333 | -9/Scraptown | Heard Great Nut preacher, LISTEN AND RECITE! 1336 | -9/Scraptown | Visited Symbiants 1380 | -9/Scraptown | Visited The Evicted 1436 | -9/Scraptown | Visited UFD Registry 1436 | -9/Scraptown | Registered with UFD as "Cargotail" 1493 | -9/Scraptown | Visited Junk Repository 1541 | -9/Scraptown | Visited Abandonware Association 1562 | -9/Scraptown | Learned abandonware demo "KABOOM.EXE" 1587 | -9/Scraptown | Visited A0-MCA Data Center 1627 | -9/Scraptown | Visited Scrap Suit Storage 1662 | -9/Scraptown | Visited DA-N13 Charitable Foundation 1690 | -9/Scraptown | Visited Junk Cannon Lab 1735 | -9/Scraptown | Visited Observation Area 1784 | -9/Scraptown | Visited Junk Repository 1828 | -9/Scraptown | Visited Curators Association 1891 | -9/Scraptown | Visited Science Guys 1974 | -9/Scraptown | Delivered Scrap Shield to a Scientist 2212 | -9/Scraptown | Entered Cyclist Reading Room 2276 | -9/Scraptown | Entered Factory 2276 | -6/Factory | Evolved 8 slots: Power x1, Propulsion x1, Utility x4, Weapon x2 2670 | -6/Factory | Build established: Skirmisher 3055 | -6/Factory | Self-destructed Last Messages --------------- 02648_ Dropped Arm. Wheel. 02698_ Acquired Mic. Nuclear Core. 02713_ ALERT: Hostiles spotted, dispatching reinforcements to Terminal F005. 02831_ K-01 Serf cleans the Power Conduit. 02838_ ALERT: Potential suspicious activity detected, Programmers report to Factory Zone 1R. 02886_ P-60 Hacker destroyed. 02894_ Acquired Target Analyzer. 02897_ R-10 Processor collects Imp. Heat Sink. 02900_ R-10 Processor collects Gravmag System. 02945_ Acquired Imp. Medium Treads. 02959_ ALERT: Security rotation in progress. 03007_ W-25 Informer sends out distress signal. 03008_ G-50 Soldier destroyed. 03024_ Acquired 56 matter. 03033_ Knocked back. 03036_ Acquired Power Sword. 03039_ Knocked back. 03051_ Hrd. Light Armor Plating destroyed. Map ----- +----------------------------------------------------+ | ?????????????????????????????????????????????????? | | ?????????????????????????????????????????????????? | | ?????????????????????????????????????????????????? | | ?????????????????????????????????????????????????? | | ?????????????????????????????????????????????????? | | ?????????????????????????????????????????????????? | | ?????????????????????????????????????????????????? | | ?????????????????????????????????????????????????? | | ?????????????????????????????? ??????????????????? | | ?????????????????????????????? ??????????????????? | | ?????????????????????????????? ??????????????????? | | ?????????????????????????????? ??????????????????? | | ?????????????????????????????? ??????????????????? | | ?????????????????????????????? ??????????????????? | | ?????????????????????????????? ??????????????????? | | ?????????????????????????????# #?????????????????? | | ?????????????????????????????# #?????????????????? | | ?????????????????????????????# #?????????????????? | | ?????????????????????????????# #?????????????????? | | ?????????????????????????????# ########??????????? | | ?????????????????????????????# # = #??????????? | | ?????????????????#???????????# # #??????"???? | | ?????????????????# ?????????# # /// #?????? ???? | | ??????????????????# Y ######## # //% #?????? ???? | | ??????????????????# s s s gu #?????? ???? | | ??????????????????# s @% ;H u A #?????? ???? | | ??????????????????# ##u##""####### #??? | | ??????????????????# g u kR #??? | | ??????????????????# ##### ########### #??? | | ??????????????????# k #??##+########### #??? | | ??????????????????+ #??# # #??? | | ??????????????????# #??# =! # #??? | | ??!???????????????# #??# =! # #### | | ?????????[????????### #??# =! # | | ????????????????????# k#??# # | | ????????????????????# #??# """" """" + | | ????????????????????# #??# """" """" # | | ???????????????????? ??+ """" """" # | | ???????????????????? #??# """" """" #####+ | | ????????????????????? #??# """" """" # | | ???????????????????????##+##???# """" """" # """" | | ???????????????????????????????# # | | ???????????????????????????????############## """" | | ????????????????????????????????????????????# | | ????????????????????????????????????????????# """" | | ????????????????????????????????????????????# | | ???"??????????????????????????##?????#########/### | | ??? ??????????????????????????# ????# % ^ | | ###/###???????????????????????# ????# ^ | | ^???????????????????????# ???# ^ | +----------------------------------------------------+ Best States ------------- Heat Dissipation 37 Energy Generation 23 Energy Capacity 300 Matter Stores 300 Matter Capacity 300 Sight Range 16 Robot Scan Range 16 Terrain Scan Density 10 Armor Coverage 150 Evasion (%) 55 Offensive Hacking 10 Item Schematics ----------------- None Robot Schematics ------------------ None Fabricated ------------ Nothing Repaired ---------- Nothing Studied --------- None Alien Tech Used ----------------- None Achievements -------------- Nice Directions, Buddy Challenges ------------ None Game ------ Seed SalvagingMeleeImmobilizer Manual? 0 Play Time 00:36:00 Cumulative 202.9 hours Start 2025.10.26 @ 13:07:39 End 2025.10.26 @ 13:43:29 Sessions 1 Manual Loads 0 Difficulty Rogue Special Mode None Game No. 243 Rogue 69 Adventurer 174 Explorer 0 Win Type - Total 1 Types 1/0/0/0/0/0/0/0/0/0 Lore% 51 Gallery% 57 Achievement% 36 Wizard Run 0 Options --------- Layout 0 ASCII 0 Keyboard 1 Movement Numpad Keybinds 0 Fullscreen 1 Font 18/Terminus Map View 76x50 Zoom Use 0% Tactical HUD 1 Map Filters NONE Filters NONE Steam 1 RUN: 17229c31-e087-402c-8562-fc3a3b687723